Cogmind - Beta 15 @@@ ROGUE MODE // 2025.06.10 @ 02:05:44 Player: Tenderz Result: Destroyed by Piercing Trap Performance ------------- Evolutions (0) 0 Regions Visited (2) 400 Robots Destroyed (38) 190 Value Destroyed (911) 911 Prototype IDs (11) 220 Alien Tech Used (0) 0 Bonus (0) 0 TOTAL SCORE: 1721 Bonus ------- None Cogmind --------- Core Integrity 0/250 Matter 228/300 Energy 248/250 System Corruption 0% Temperature Cool (0) Movement Rolling (119) Ox2 Location -10/Subcaves Parts ------- > --- POWER (1) -------- Ion Engine > --- PROPULSION (2) --- Wheel Subdweller Monowheel > --- UTILITY (2) ------ High-capacity Storage Unit Gun Armor > --- WEAPON (2+2) ----- Subdweller Beam Cannon Subdweller Shrapnel Launcher > --- INVENTORY (20) --- Ion Engine Light Treads Aluminum Leg Wheel Heat Sink Huge Storage Unit Large Matter Pod (150) Machine Analyzer Sensor Array Improved Terrain Scanner Seismic Detector Scrap Shield Heavy Riot Gun Subdweller Laser Beam Cannon Beam Cannon Subdweller Beam Cannon Hammer Peak State ------------ > --- POWER ------------ Ion Engine > --- PROPULSION ------- Light Treads Spiked Treads > --- UTILITY ---------- High-capacity Storage Unit Gun Armor > --- WEAPON ----------- Subdweller Beam Cannon Subdweller Shrapnel Launcher > --- INVENTORY -------- Ion Engine Aluminum Leg Wheel Wheel Subdweller Monowheel Heat Sink Huge Storage Unit Large Matter Pod Machine Analyzer Sensor Array Improved Terrain Scanner Seismic Detector Scrap Shield Heavy Riot Gun Subdweller Laser Beam Cannon Beam Cannon Subdweller Beam Cannon Hammer [Rating: 21] Favorites ----------- Power Ion Engine Engine Ion Engine Propulsion Light Treads Treads Light Treads Wheel Wheel Utility High-capacity Storage Unit Device Seismic Detector Storage High-capacity Storage Unit Processor Signal Interpreter Protection Gun Armor Weapon Beam Cannon Energy Gun EM Pulse Gun Energy Cannon Beam Cannon Ballistic Gun Light Assault Rifle Launcher Subdweller Shrapnel Launcher Impact Weapon Hammer Build | -11 -10 -10 ------- Run | Yrd Mat Sub Slots Evolved . | . . . Power . | . . . Propulsion . | . . . Utility . | . . . Weapon . | . . . Parts Attached 31 | 6 14 11 Power 3 | . 3 . Engine 3 | . 3 . Core . | . . . Reactor . | . . . Propulsion 8 | 2 2 4 Treads 5 | 2 2 1 Leg . | . . . Wheel 3 | . . 3 Hover . | . . . Flight . | . . . Utility 8 | 2 3 3 Device 3 | 1 1 1 Storage 3 | 1 2 . Processor 1 | . . 1 Hackware . | . . . Protection 1 | . . 1 Artifact . | . . . Weapon 12 | 2 6 4 Energy Gun 5 | 2 2 1 Energy Cannon 3 | . 2 1 Ballistic Gun 1 | . 1 . Ballistic Cannon . | . . . Launcher 1 | . . 1 Special Weapon . | . . . Impact Weapon 2 | . 1 1 Slashing Weapon . | . . . Piercing Weapon . | . . . Special Melee Weapon . | . . . Unidentified Prototypes . | . . . Parts Lost 8 | . 6 2 Power 1 | . 1 . Propulsion 3 | . 2 1 Utility 1 | . 1 . Weapon 3 | . 2 1 Highest Loss Streak 4 | . 4 1 To Critical Strikes . | . . . Average Backups 15 | 3 10 19 Power . | 1 . 1 Propulsion 4 | 1 3 4 Utility 5 | . 2 7 Weapon 4 | . 2 6 Tool/Special . | . . . Unused Backups 21 | . 3 18 Power 1 | . . 1 Propulsion 4 | . 1 3 Utility 8 | . 1 7 Weapon 7 | . 1 6 Tool/Special 1 | . . 1 Average Slot Usage (%) 94 | . 98 92 Engine 13 | . 13 12 Treads 18 | . 28 11 Wheel 7 | . . 14 Device 10 | . 12 9 Storage 13 | . 14 12 Protection 2 | . . 3 Energy Gun 6 | . 9 3 Energy Cannon 17 | . 13 20 Impact Weapon 2 | . 4 . Peak Build Rating 21 | 6 9 21 Average Rating 11 | 5 8 13 On Entrance 5 | . 6 9 Naked Turns . | . . . Heaviest Build 65 | 10 51 65 Greatest Support 40 | 40 40 40 Greatest Overweight (x) 5 | 2 1 5 Average Overweight (x) 1 | . . 2 Largest Inventory Capacity 20 | 8 20 20 Average Capacity 17 | 7 14 20 Most Carried 20 | 7 20 20 Average Carried 15 | 4 10 19 Final Capacity 20 | 8 20 20 Final Carried 20 | 7 20 19 Class Distribution -------------------- 100% | Mutant Dominant Class ---------------- Mutant | -10/Materials Mutant | -10/Subcaves Resources | -11 -10 -10 ----------- Run | Yrd Mat Sub Matter Collected 855 | 253 309 293 Remotely . | . . . Salvage Created 1289 | 138 875 276 Parts 71 | 4 49 18 Haulers Intercepted 2 | . 2 . Recyclers Shooed 1 | . 1 . Parts Field Recycled . | . . . Retrieved Matter . | . . . Parts Self-Destructed 7 | . . 7 Prevented . | . . . Kills | -11 -10 -10 ------- Run | Yrd Mat Sub Combat Hostiles Destroyed 26 | . 19 7 Melee 3 | . 3 . Guns 10 | . 9 1 Cannons 9 | . 6 3 AOE 2 | . . 2 Classes Destroyed 9 | 2 6 1 Worker 1 | . 1 . Tunneler 4 | 2 2 . Hauler 2 | . 2 . Recycler 2 | 1 1 . Operator 1 | . 1 . Watcher 2 | . 2 . Swarmer 6 | . 6 . Grunt 13 | . 13 . Subdweller 7 | . . 7 Best Kill Streak 5 | 2 5 2 Combat Bots Only 3 | . 3 2 Max Kills in Single Turn 2 | 1 2 1 Gunslinging . | . . . Exploded 1 | . . 1 Melee 1 | . 1 . Uniques/NPCs Destroyed . | . . . Combat | -11 -10 -10 -------- Run | Yrd Mat Sub Hostile Shots Fired 139 | . 113 26 Missed 38 | . 27 11 Hits 101 | . 86 15 Projectile 101 | . 86 15 AOE 2 | . 1 1 Critical Strikes 2 | . 1 1 Damage Taken 1400 | . 890 510 Core 256 | . 113 143 Absorbed by Shields . | . . . Core Remaining (%) 100 | 100 . . Volleys Fired 90 | 9 50 31 Largest 2 | 2 2 2 Hottest 140 | 100 120 140 Shots Fired 153 | 18 87 48 Gun 70 | 18 45 7 Cannon 79 | . 42 37 Launcher 4 | . . 4 Special . | . . . Kinetic 6 | . 2 4 Thermal 116 | 18 54 44 Explosive . | . . . Electromagnetic 31 | . 31 . Robot Hit Streak 21 | 7 9 21 Robot Miss Streak 5 | 2 5 2 Penetration Max . | . . . Secondary Targets 1 | . 1 . Max Gunslinging Chain 1 | . 1 . Shots Hit Robots 102 | 12 65 25 Core Hits 44 | 4 31 9 Critical Kills 1 | . . 1 Critical Parts Destroyed 1 | . 1 . Critical Strikes 6 | 2 3 1 Burn 3 | 2 1 . Meltdown 1 | . . 1 Corrupt 1 | . 1 . Smash 1 | . 1 . Melee Attacks 36 | . 24 12 Impact 36 | . 24 12 Slashing . | . . . Piercing . | . . . Sneak Attacks 3 | . 3 . Combat Hostiles . | . . . Follow-up Attacks . | . . . Damage Inflicted 2162 | 159 1353 650 Guns 592 | 159 354 79 Cannons 880 | . 438 442 Explosions 208 | . 79 129 Melee 452 | . 452 . Ramming 30 | . 30 . Kinetic 138 | . 9 129 Thermal 1284 | 159 604 521 Explosive . | . . . Electromagnetic 258 | . 258 . Impact 452 | . 452 . Slashing . | . . . Piercing . | . . . Highest Corruption . | . . . Average Corruption . | . . . Corruption Purged . | . . . Corruption Blocked . | . . . Overload Shots . | . . . Overflow Damage 120 | . 120 . Projectiles 14 | . 14 . Explosions . | . . . Melee 106 | . 106 . Knockbacks 3 | . 3 . Impact 3 | . 3 . Kinetic . | . . . Secondary . | . . . Self-Inflicted Damage 47 | . . 47 Shots 1 | . . 1 Rammed 4 | . 4 . Targets Rammed 6 | . 6 . Kicked . | . . . Crushed 2 | . 2 . Highest Temperature 270 | 96 270 260 Average Temperature 73 | 41 81 60 Received Heat Transfer 632 | . 285 347 Effects 2 | . 1 1 Energy Bleed 2 | . 1 1 Siege Activations . | . . . Martial Activations . | . . . Shielding Activations . | . . . Robots Disrupted . | . . . Combat Hostiles . | . . . Robots Corrupted 2 | . 2 . Combat Hostiles 1 | . 1 . Parts Fried 1 | . 1 . Impact Corruptions 6 | . 6 . Robots Melted 1 | . . 1 Combat Hostiles 1 | . . 1 Parts Melted 7 | 2 2 3 Heat Transferred 2825 | 629 1308 888 Parts Sabotaged . | . . . Parts Stolen . | . . . Parts Stripped . | . . . Power Chain Reactions 1 | . 1 . Alert | -11 -10 -10 ------- Run | Yrd Mat Sub Maximum Alert Level . | . . . Low Security (%) 100 | 100 100 . Level 1 . | . . . Level 2 . | . . . Level 3 . | . . . Level 4 . | . . . Level 5 . | . . . High Security . | . . . Max Security . | . . . Peak Influence 143 | 10 143 . Initial . | . . . Average 52 | 1 56 . Influence Increases 701 | 15 641 45 Destroy 0b10 Robot/C 380 | . 380 . Destroy 0b10 Robot/NC 60 | 15 45 . Destroy Leader 88 | . 88 . Successful Hack 12 | . 12 . Select Force Hacks 30 | . 30 . Disable Machine 15 | . 15 . Destroy Structure 11 | . 11 . Lose Combat Pursuer 105 | . 60 45 Influence Decreases 701 | 15 577 109 Entered New Map 32 | . . 32 Time Decay 572 | 15 480 77 Lost Part 33 | . 33 . Purge Threat 64 | . 64 . Squads Dispatched 5 | . 5 . Investigation 4 | . 4 . Extermination . | . . . Reinforcement 1 | . 1 . Assault . | . . . Garrison . | . . . Intercept . | . . . Searches Triggered . | . . . Construction Impeded . | . . . Haulers Reinforced . | . . . Active Scanning Responses . | . . . Cargo Convoy Interrupts . | . . . Stealth | -11 -10 -10 --------- Run | Yrd Mat Sub Distress Signals 3 | . 3 . Communications Jammed . | . . . Distress Signals . | . . . Times Spotted 51 | . 40 11 Peak Tracking Total 5 | . 5 2 Tactical Retreats 4 | . 3 1 Traps | -11 -10 -10 ------- Run | Yrd Mat Sub Traps Triggered 5 | . 3 2 Indirectly . | . . . Trap Hack Attempts . | . . . Triggered . | . . . Disarmed . | . . . Reprogrammed . | . . . Reused . | . . . Traps Extracted . | . . . Installed . | . . . Triggered . | . . . Machines | -11 -10 -10 ---------- Run | Yrd Mat Sub Machines Disabled 2 | . 1 1 Max in Single Turn 1 | . 1 1 Machines Repaired . | . . . Machines Dismantled . | . . . Machines Sabotaged . | . . . Overloaded Fab Kills . | . . . Hacking | -11 -10 -10 --------- Run | Yrd Mat Sub Machines Accessed 9 | . 8 1 Terminals 7 | . 7 . Fabricators . | . . . Repair Stations . | . . . Recycling Units 1 | . 1 . Scanalyzers . | . . . Garrison Access . | . . . Total Hacks 31 | . 30 1 Successful 18 | . 17 1 Failed 12 | . 12 . Catastrophic 2 | . 2 . Database Lockouts 1 | . 1 . Manual 16 | . 16 . Terminals 24 | . 24 . Fabricators . | . . . Repair Stations . | . . . Recycling Units 6 | . 6 . Scanalyzers . | . . . Garrison Access . | . . . Terminal Hacks 8 | . 7 1 Part Schematic 1 | . 1 . Alert Level 1 | . 1 . Unreport Threat 1 | . 1 . Locate Traps 1 | . 1 . Maintenance Status 1 | . 1 . Surveillance Status 1 | . 1 . Zone Layout 1 | . 1 . Proto ID Catalog 1 | . . 1 Fabricator Hacks . | . . . Repair Station Hacks . | . . . Recycling Unit Hacks 2 | . 2 . Report Inventory 1 | . 1 . Retrieve Components 1 | . 1 . Scanalyzer . | . . . Garrison Access Hacks . | . . . Unauthorized Hacks 8 | . 8 . Terminals 6 | . 6 . Track 3 | . 3 . Assimilate 1 | . 1 . Botnet 2 | . 2 . Fabricators . | . . . Repair Stations . | . . . Recycling Units 2 | . 2 . Recyclers 1 | . 1 . Tunnel 1 | . 1 . Scanalyzers . | . . . Garrison Access . | . . . Data Cores Recovered . | . . . Used . | . . . Hacking Detections 8 | . 8 . Full Trace Events . | . . . Feedback Events . | . . . Feedback Blocked . | . . . Robot Schematics Acquired . | . . . Robots Built . | . . . Authchips . | . . . Time . | . . . Total Robot Build Rating . | . . . Part Schematics Acquired 1 | . 1 . Parts Built . | . . . Authchips . | . . . Time . | . . . Total Part Build Rating . | . . . Parts Repaired . | . . . Time . | . . . Parts Recycled . | . . . Recycled Matter . | . . . Retrieved Matter . | . . . Retrieved Components 1 | . 1 . Parts Scanalyzed . | . . . Part Schematics Acquired . | . . . Parts Damaged . | . . . Bothacking | -11 -10 -10 ------------ Run | Yrd Mat Sub Used RIF Installer . | . . . Robots Hacked . | . . . Non-combat . | . . . Combat . | . . . Robot Hacks Applied . | . . . Relay Couplers Released . | . . . Fabnet Peak Effective % . | . . . Robots Rewired . | . . . Allies Hacked . | . . . Hacks Repelled . | . . . Allies | -11 -10 -10 -------- Run | Yrd Mat Sub Total Allies . | . . . Largest Group . | . . . Highest-Rated Group . | . . . Highest-Rated Ally . | . . . Total Orders . | . . . Ally Attacks . | . . . Total Damage . | . . . Kills . | . . . Allies Corrupted . | . . . Allies Melted . | . . . Intel | -11 -10 -10 ------- Run | Yrd Mat Sub Active Infowar (turns) 2652 | 51 1490 1111 Seismic 2652 | 51 1490 1111 Robot Analysis Total . | . . . Derelict Logs Recovered 1 | . . 1 Drone Launches . | . . . Drone Recoveries . | . . . Exploration | -11 -10 -10 ------------- Run | Yrd Mat Sub Turns Passed 3673 | 118 1632 1923 Spaces Moved 1793 | 49 655 1089 Core 3 | 3 . . Treads 861 | 46 655 160 Legs . | . . . Wheels 929 | . . 929 Hover . | . . . Flight . | . . . Fastest Speed 50 | 50 160 110 Average Speed 164 | 156 197 145 Slowest Speed 250 | 160 240 250 Overloaded Moves . | . . . Propulsion Burnouts . | . . . Robots Hopped . | . . . Potential Cave-ins . | . . . Cave-ins Triggered . | . . . Exploration Rate (%) 56 | 6 92 72 Regions Visited 2 Branch Regions 1 Pre-discovered Areas 2 | . 1 1 Known Exits Taken . | . . . Unknown Exits Taken 2 | 1 1 . Scrap Searched 2 | . . 2 Spaces Dug 1 | . 1 . Terrain Destroyed 44 | . 6 38 Melee 1 | . 1 . Projectile . | . . . AOE 43 | . 5 38 Terrain Rammed . | . . . Walls Destroyed . | . . . Machines Disabled . | . . . Actions | -11 -10 -10 --------- Run | Yrd Mat Sub Total 2277 | 70 859 1348 Wait 245 | . 74 171 Move 1791 | 48 654 1089 Hop . | . . . Pick Up 38 | 7 23 8 Fast Attach 9 | 6 2 1 Attach 10 | . 7 3 Detach . | . . . Swap 34 | . 11 23 Drop 18 | . 8 10 Fire 90 | 9 50 31 Melee 36 | . 24 12 Ram . | . . . Kick . | . . . Crush 6 | . 6 . Escape Stasis . | . . . Rewire . | . . . Trap . | . . . Miscellaneous . | . . . Route ------- -11/Scrapyard -10/Materials (discovered 5 exits: [*Mat x3] / [*Min] / *Sub) -10/Subcaves (discovered 2 exits: *Mat x2) History --------- Turn | Location | Event 11 | -11/Scrapyard | Discovered new exit (range 16) 119 | -11/Scrapyard | Entered Materials 336 | -10/Materials | Build established: Mutant 479 | -10/Materials | Discovered new exit (range 8) 674 | -10/Materials | Central database locked down 703 | -10/Materials | Discovered new exit (range 14) 1226 | -10/Materials | Discovered new exit (range 15) 1269 | -10/Materials | Discovered new exit (range 8) 1296 | -10/Materials | Lost 4 parts (1p1n1u1w) 1597 | -10/Materials | Discovered new exit (range 4) 1751 | -10/Materials | Entered Subcaves 1752 | -10/Subcaves | Approached by a straggling Scientist 1883 | -10/Subcaves | Shifting Twisted Machinery released Sub. Laser 1891 | -10/Subcaves | Discovered new exit (range 3) 1908 | -10/Subcaves | Identified exit to Materials 2184 | -10/Subcaves | Core integrity fell below 50% 2199 | -10/Subcaves | Core integrity fell below 20% 2237 | -10/Subcaves | Shifting Twisted Machinery released Sub. Beam Cannon 2497 | -10/Subcaves | A swath of the cavern ceiling suddenly collapsed 2844 | -10/Subcaves | Visited 4L-MR0's lab 2862 | -10/Subcaves | Found Gun Armor 3018 | -10/Subcaves | Attached Gun Armor, gained temporary slots: Weapon x2 3541 | -10/Subcaves | Curiously followed by a Cobbler waking with a query about "LVR3C" 3623 | -10/Subcaves | A swath of the cavern ceiling suddenly collapsed 3653 | -10/Subcaves | Learned location of Zion (-6) 3661 | -10/Subcaves | Discovered exit to Materials (range 11) 3674 | -10/Subcaves | Destroyed by Piercing Trap Last Messages --------------- 03564_ Sub. Laser melted. 03564_ CU-TDN(R) destroyed. 03573_ NH-GN7(R) destroyed. 03576_ Acquired 15 matter. 03582_ Acquired 7 matter. 03594_ Acquired 4 matter. 03599_ RE-A72(O) collects matter. 03612_ Subatomizers dissect the Disposable Heat Sink. 03623_ 20 Matter crushed. A swath of the cavern ceiling suddenly collapses. 03653_ Acquired derelict log, extracted data. World map updated: -6/Zion. 03655_ Acquired 7 matter. 03661_ EXIT=FOUND: MATERIALS 03667_ Triggered Piercing Trap. 03667_ Spikes shoot up from the floor. 03667_ Critical hit (Impale). 03674_ Triggered Piercing Trap. 03674_ Spikes shoot up from the floor. [Achievement: Tester] Map ----- +----------------------------------------------------+ | ?????????????????????????????????????????????????? | | ?????????????????????????????????????????????????? | | ?????????????????????????????????????????????????# | | ?????????????????????????????????????????????????# | | ?????????????????????????????????????????????????# | | ?????????????????????????????????????????????????# | | ?????????????????????????????????????????????????# | | ?????????????????????????????????????????????????# | | ?????????????????????????????????????????????????? | | ?????????????????????????????????????????????????? | | ?????????????????????????????????????????????????? | | ?????????????????????????????????????????????????? | | ?????????????????????????????????????????????????? | | ?????????????????????????????????????????? ??????? | | ???????????????????????????##??????????? ??????? | | ??????????????????????????? ???????????# ???##" | | ??????????????????????????? ??????#???## #??#"" | | ?????????????????????????? ??????? ### % #? | | ????????????? ??????##?? ????????# ?? | | ?????????????# ??????? ? ????????? # %# # ??? | | ????????????## ??????? ???????# ?# " #?## | | ????????????# ???????? #???????# ## ### | | ????????????? < ???????# ##??????## ## " " | | ?????????????? ???????# ######## # " | | ??????????????? ??????## # "## ## " " | | ???????????????? ?????#@ # ##" ### & | | ????????????????# ?????# #;# "#""""## !%= & | | ????????????????# #???##^;### #"# ""#???# [ | | ????????????????# ???# ;;#""" ### #????# | | ???????????????## #### ;;####"""##????# " | | ??????# ## # #"#?#" ""####?# " | | ????? #####"""##""###" """ | | ????? ##??# "#"""# # "" "### | | ?????# ##### ######### #""#"# ##?? | | ??????### ??????###???## ##"###### #??? | | ????????###???????????????# "##???# ## # ##??? | | ??????????????????????????## ##???####### #???? | | ???????????????????????????### #?????????####???? | | ?????????????????????????????####????????????????? | | ?????????????????????????????????????????????????? | | ?????????????????????????????????????????????????? | | ?????????????????????????????????????????????????? | | ?????????????????????????????????????????????????? | | ?????????????????????????????????????????????????? | | ?????????????????????????????????????????????????? | | ?????????????????????????????????????????????????? | | ?????????????????????????????????????????????????? | | ?????????????????????????????????????????????????? | | ?????????????????????????????????????????????????? | | ?????????????????????????????????????????????????? | +----------------------------------------------------+ Best States ------------- Heat Dissipation 35 Energy Generation 10 Energy Capacity 250 Matter Stores 300 Matter Capacity 300 Sight Range 16 Terrain Scan Density 10 Armor Coverage 60 Evasion (%) 40 Recoil Reduction 2 Item Schematics ----------------- Hcp. Storage Unit | -10/Materials | Hacked Robot Schematics ------------------ None Fabricated ------------ Nothing Repaired ---------- Nothing Alien Tech Used ----------------- None Achievements -------------- Tester Challenges ------------ None Game ------ Seed CannonPulseJammer Manual? 0 Play Time 00:30:54 Cumulative 101.2 hours Start 2025.06.10 @ 01:38:28 End 2025.06.10 @ 02:05:44 Sessions 1 Manual Loads 0 Difficulty Rogue Special Mode None Game No. 63 Rogue 63 Adventurer 0 Explorer 0 Win Type - Total 0 Types 0/0/0/0/0/0/0/0/0/0 Lore% 48 Gallery% 50 Achievement% 45 Wizard Run 0 Options --------- Layout 2 ASCII 0 Keyboard 0 Movement Numpad Keybinds 0 Fullscreen 0 Font 24/Proggy Map View 59x48 Zoom Use 0% Tactical HUD 1 Map Filters NONE Filters NONE Steam 1 RUN: accb41f9-c8b8-4814-9276-5fa4c1c72fe3